[Event "Early-Titled-Tuesday-Blitz-January-23-2024"]
[Site "Chess.com"]
[Date "2024.01.23"]
[Round "8"]
[White "Gabrielian_Artur"]
[Black "jaskol95"]
[Result "1/2-1/2"]
[WhiteElo "2770"]
[BlackElo "2562"]
[TimeControl "180+1"]
[EndTime "9:30:25 PST"]
[Termination "Game drawn by repetition"]

1. e4 {[%clk 0:03:00.9]} 1... d5 {[%clk 0:02:59.9]} 2. exd5 {[%clk 0:03:00.4]}
2... Nf6 {[%clk 0:03:00.5]} 3. Nf3 {[%clk 0:03:00.1]} 3... Bg4 {[%clk
0:02:56.8]} 4. h3 {[%clk 0:02:59.7]} 4... Bxf3 {[%clk 0:02:56.7]} 5. Qxf3 {[%clk
0:02:59.6]} 5... Qxd5 {[%clk 0:02:57.2]} 6. Qxd5 {[%clk 0:02:53.8]} 6... Nxd5
{[%clk 0:02:57.5]} 7. c3 {[%clk 0:02:52.6]} 7... e6 {[%clk 0:02:56.8]} 8. d4
{[%clk 0:02:52.3]} 8... c6 {[%clk 0:02:56.1]} 9. Nd2 {[%clk 0:02:51.5]} 9... Nd7
{[%clk 0:02:56]} 10. Nf3 {[%clk 0:02:51.6]} 10... Bd6 {[%clk 0:02:54.6]} 11. g3
{[%clk 0:02:51.6]} 11... O-O {[%clk 0:02:53.5]} 12. Bg2 {[%clk 0:02:51.8]} 12...
e5 {[%clk 0:02:44.9]} 13. dxe5 {[%clk 0:02:46.1]} 13... Nxe5 {[%clk 0:02:45]}
14. Nxe5 {[%clk 0:02:44.5]} 14... Bxe5 {[%clk 0:02:45.2]} 15. O-O {[%clk
0:02:44.6]} 15... Nb6 {[%clk 0:02:38.2]} 16. a4 {[%clk 0:02:38.9]} 16... a5
{[%clk 0:02:22.9]} 17. Ra3 {[%clk 0:02:36.4]} 17... Rab8 {[%clk 0:02:05.2]} 18.
b4 {[%clk 0:02:24]} 18... Nc4 {[%clk 0:01:43.5]} 19. Rb3 {[%clk 0:02:23.3]}
19... Rfd8 {[%clk 0:01:36.6]} 20. Re1 {[%clk 0:02:17.4]} 20... Bc7 {[%clk
0:01:23.4]} 21. Bg5 {[%clk 0:01:51.5]} 21... f6 {[%clk 0:01:20.8]} 22. Bc1
{[%clk 0:01:39.6]} 22... Kf7 {[%clk 0:01:20.2]} 23. b5 {[%clk 0:01:21.8]} 23...
c5 {[%clk 0:00:53.6]} 24. Bf1 {[%clk 0:01:06.1]} 24... Nb6 {[%clk 0:00:53.3]}
25. Be3 {[%clk 0:00:59.8]} 25... Bd6 {[%clk 0:00:44.7]} 26. Rd1 {[%clk
0:00:51.7]} 26... Be7 {[%clk 0:00:41.6]} 27. Ra1 {[%clk 0:00:44]} 27... Nd5
{[%clk 0:00:26.1]} 28. Bd2 {[%clk 0:00:37.1]} 28... Kf8 {[%clk 0:00:21.5]} 29.
b6 {[%clk 0:00:36.7]} 29... Rd6 {[%clk 0:00:17.8]} 30. Rab1 {[%clk 0:00:35.3]}
30... Rbd8 {[%clk 0:00:15.5]} 31. Be1 {[%clk 0:00:32.4]} 31... Rc8 {[%clk
0:00:14.4]} 32. Bg2 {[%clk 0:00:31.7]} 32... Bd8 {[%clk 0:00:12.1]} 33. c4
{[%clk 0:00:30.8]} 33... Nxb6 {[%clk 0:00:11.2]} 34. Bxb7 {[%clk 0:00:29.7]}
34... Rb8 {[%clk 0:00:06.3]} 35. Bd5 {[%clk 0:00:22]} 35... Rc8 {[%clk
0:00:06.6]} 36. Bb7 {[%clk 0:00:17.9]} 36... Rb8 {[%clk 0:00:06.9]} 37. Ba6
{[%clk 0:00:18.3]} 37... Ra8 {[%clk 0:00:06.3]} 38. Bb5 {[%clk 0:00:18.7]} 38...
Nd7 {[%clk 0:00:03.3]} 39. f4 {[%clk 0:00:17]} 39... f5 {[%clk 0:00:03.6]} 40.
Bf2 {[%clk 0:00:17]} 40... Rc8 {[%clk 0:00:03]} 41. Re1 {[%clk 0:00:15.7]} 41...
Nf6 {[%clk 0:00:03.3]} 42. Re5 {[%clk 0:00:13]} 42... g6 {[%clk 0:00:02.2]} 43.
Bxc5 {[%clk 0:00:12.7]} 43... Rxc5 {[%clk 0:00:02.7]} 44. Kg2 {[%clk 0:00:09.4]}
44... Rc8 {[%clk 0:00:02.1]} 45. c5 {[%clk 0:00:09.4]} 45... Rd2+ {[%clk
0:00:02.5]} 46. Kf3 {[%clk 0:00:10]} 46... Ne4 {[%clk 0:00:03]} 47. c6 {[%clk
0:00:09.6]} 47... Bb6 {[%clk 0:00:02.9]} 48. Be2 {[%clk 0:00:07.9]} 48... Rc2
{[%clk 0:00:02.1]} 49. Rxb6 {[%clk 0:00:07.7]} 49... R2xc6 {[%clk 0:00:02.1]}
50. Rxc6 {[%clk 0:00:07.5]} 50... Rxc6 {[%clk 0:00:02.5]} 51. Bb5 {[%clk
0:00:07.9]} 51... Rc3+ {[%clk 0:00:02.8]} 52. Ke2 {[%clk 0:00:08.4]} 52... Rxg3
{[%clk 0:00:03.1]} 53. Bc6 {[%clk 0:00:08.1]} 53... Ra3 {[%clk 0:00:02.8]} 54.
Bxe4 {[%clk 0:00:07.7]} 54... fxe4 {[%clk 0:00:03.5]} 55. Rxa5 {[%clk 0:00:08]}
55... Rxh3 {[%clk 0:00:03.8]} 56. Ra7 {[%clk 0:00:07.9]} 56... Ra3 {[%clk
0:00:03.5]} 57. a5 {[%clk 0:00:08.1]} 57... h5 {[%clk 0:00:04.2]} 58. a6 {[%clk
0:00:08.6]} 58... h4 {[%clk 0:00:03.9]} 59. Rh7 {[%clk 0:00:08.1]} 59... Kg8
{[%clk 0:00:04]} 60. Rxh4 {[%clk 0:00:07.5]} 60... Rxa6 {[%clk 0:00:04.5]} 61.
Ke3 {[%clk 0:00:08.1]} 61... Ra4 {[%clk 0:00:04.2]} 62. Rh1 {[%clk 0:00:07.7]}
62... Kg7 {[%clk 0:00:04.5]} 63. Rc1 {[%clk 0:00:07.9]} 63... Kf6 {[%clk
0:00:04.9]} 64. Rc5 {[%clk 0:00:08]} 64... Rb4 {[%clk 0:00:04.5]} 65. Ra5 {[%clk
0:00:07.7]} 65... Kg7 {[%clk 0:00:04.7]} 66. Re5 {[%clk 0:00:07.6]} 66... Kf6
{[%clk 0:00:04.2]} 67. Ra5 {[%clk 0:00:07.5]} 67... Rc4 {[%clk 0:00:03.8]} 68.
Rb5 {[%clk 0:00:07.6]} 68... Ra4 {[%clk 0:00:04]} 69. Rc5 {[%clk 0:00:07.6]}
69... Ke6 {[%clk 0:00:04.5]} 70. Re5+ {[%clk 0:00:07.6]} 70... Kf6 {[%clk
0:00:05.1]} 71. Rd5 {[%clk 0:00:07.6]} 71... Rb4 {[%clk 0:00:04.4]} 72. Rc5
{[%clk 0:00:07.5]} 72... Kg7 {[%clk 0:00:04.9]} 73. Rg5 {[%clk 0:00:07.2]} 73...
Kh6 {[%clk 0:00:05.2]} 74. Re5 {[%clk 0:00:07.2]} 74... Ra4 {[%clk 0:00:05.5]}
75. Rd5 {[%clk 0:00:06.7]} 75... Rb4 {[%clk 0:00:04.8]} 76. Re5 {[%clk
0:00:06.8]} 76... Ra4 {[%clk 0:00:05.3]} 77. Rd5 {[%clk 0:00:07]} 77... Rb4
{[%clk 0:00:05.4]} 78. Rd6 {[%clk 0:00:05.8]} 78... Kh5 {[%clk 0:00:04.2]} 79.
Rd5+ {[%clk 0:00:06.1]} 79... Kh4 {[%clk 0:00:04.4]} 80. Rg5 {[%clk 0:00:06.4]}
80... Rb6 {[%clk 0:00:03.5]} 81. Kxe4 {[%clk 0:00:06.5]} 81... Rf6 {[%clk
0:00:03.5]} 82. Ke5 {[%clk 0:00:06.3]} 82... Ra6 {[%clk 0:00:01.9]} 83. Rg1
{[%clk 0:00:06.3]} 83... Ra5+ {[%clk 0:00:02.2]} 84. Ke4 {[%clk 0:00:05.3]}
84... Kh5 {[%clk 0:00:02]} 85. Rg2 {[%clk 0:00:03.9]} 85... Kh6 {[%clk
0:00:02.4]} 86. Rc2 {[%clk 0:00:03.4]} 86... Kg7 {[%clk 0:00:02.8]} 87. Rc7+
{[%clk 0:00:03.7]} 87... Kh6 {[%clk 0:00:03.3]} 88. Kf3 {[%clk 0:00:04.1]} 88...
Ra3+ {[%clk 0:00:03.5]} 89. Kg4 {[%clk 0:00:04.5]} 89... Ra1 {[%clk 0:00:04.2]}
90. Rc8 {[%clk 0:00:04.8]} 90... Rg1+ {[%clk 0:00:04.4]} 91. Kf3 {[%clk
0:00:05.3]} 91... Rf1+ {[%clk 0:00:05]} 92. Kg3 {[%clk 0:00:05.9]} 92... Rg1+
{[%clk 0:00:05.4]} 93. Kf2 {[%clk 0:00:06.5]} 93... Ra1 {[%clk 0:00:05.8]} 94.
Kf3 {[%clk 0:00:06.8]} 94... Rf1+ {[%clk 0:00:05.4]} 95. Ke4 {[%clk 0:00:06.7]}
95... Re1+ {[%clk 0:00:05.9]} 96. Kf3 {[%clk 0:00:06.6]} 96... Rf1+ {[%clk
0:00:06.4]} 1/2-1/2

[Event "Early-Titled-Tuesday-Blitz-January-23-2024"]
[Site "Chess.com"]
[Date "2024.01.23"]
[Round "8"]
[White "Saraisitave"]
[Black "C_K_G"]
[Result "0-1"]
[WhiteElo "2288"]
[BlackElo "2125"]
[TimeControl "180+1"]
[EndTime "9:30:26 PST"]
[Termination "C_K_G won on time"]

1. e4 {[%clk 0:02:55.5]} 1... c5 {[%clk 0:03:00]} 2. Nc3 {[%clk 0:02:55.6]} 2...
d6 {[%clk 0:03:00.1]} 3. Nf3 {[%clk 0:02:56.3]} 3... a6 {[%clk 0:03:00.4]} 4. d4
{[%clk 0:02:56.1]} 4... cxd4 {[%clk 0:03:00.3]} 5. Nxd4 {[%clk 0:02:56.9]} 5...
e6 {[%clk 0:03:00.9]} 6. Bc4 {[%clk 0:02:56.5]} 6... Nf6 {[%clk 0:03:01]} 7. O-O
{[%clk 0:02:53]} 7... Be7 {[%clk 0:03:01.2]} 8. Bb3 {[%clk 0:02:53.2]} 8... O-O
{[%clk 0:03:01.7]} 9. Kh1 {[%clk 0:02:53.6]} 9... Qc7 {[%clk 0:03:01.3]} 10. f4
{[%clk 0:02:53.4]} 10... b5 {[%clk 0:03:01]} 11. a3 {[%clk 0:02:52.7]} 11... Bb7
{[%clk 0:03:00.5]} 12. Qe1 {[%clk 0:02:51.5]} 12... d5 {[%clk 0:02:41.1]} 13. e5
{[%clk 0:02:39.4]} 13... Ne4 {[%clk 0:02:38.8]} 14. Nce2 {[%clk 0:02:26.7]}
14... Nc6 {[%clk 0:02:26.6]} 15. c3 {[%clk 0:02:26.1]} 15... Kh8 {[%clk
0:01:35.7]} 16. Bc2 {[%clk 0:02:01.3]} 16... Bc5 {[%clk 0:01:28.3]} 17. Be3
{[%clk 0:01:46.3]} 17... Qb6 {[%clk 0:01:20.5]} 18. Qh4 {[%clk 0:01:33]} 18...
Rac8 {[%clk 0:01:10.3]} 19. Rad1 {[%clk 0:01:26.9]} 19... a5 {[%clk 0:01:07.1]}
20. Rf3 {[%clk 0:01:24.1]} 20... Be7 {[%clk 0:00:27.3]} 21. Qh5 {[%clk 0:01:19]}
21... Nxd4 {[%clk 0:00:19.4]} 22. Bxd4 {[%clk 0:01:16]} 22... Qd8 {[%clk
0:00:18.7]} 23. Rh3 {[%clk 0:01:13.3]} 23... h6 {[%clk 0:00:19.1]} 24. f5 {[%clk
0:00:54.8]} 24... exf5 {[%clk 0:00:17.8]} 25. Qxf5 {[%clk 0:00:50.8]} 25... Kg8
{[%clk 0:00:15.2]} 26. Qg4 {[%clk 0:00:35.2]} 26... Kh7 {[%clk 0:00:14.5]} 27.
Rf1 {[%clk 0:00:30.5]} 27... g6 {[%clk 0:00:12.3]} 28. Ng3 {[%clk 0:00:19.6]}
28... Nxg3+ {[%clk 0:00:11]} 29. Qxg3 {[%clk 0:00:18.7]} 29... Bg5 {[%clk
0:00:11.1]} 30. Qg4 {[%clk 0:00:16.5]} 30... Qe7 {[%clk 0:00:10.3]} 31. Qe2
{[%clk 0:00:15.1]} 31... Rce8 {[%clk 0:00:10]} 32. Rg3 {[%clk 0:00:13.8]} 32...
Qe6 {[%clk 0:00:09.1]} 33. Rgf3 {[%clk 0:00:14.1]} 33... Re7 {[%clk 0:00:08.8]}
34. h3 {[%clk 0:00:14.4]} 34... Bc8 {[%clk 0:00:08.3]} 35. Qf2 {[%clk
0:00:15.2]} 35... Qd7 {[%clk 0:00:07.7]} 36. Qe2 {[%clk 0:00:11]} 36... Qe6
{[%clk 0:00:06.3]} 37. Qd3 {[%clk 0:00:10.9]} 37... Kg7 {[%clk 0:00:05.6]} 38.
Qxb5 {[%clk 0:00:10.7]} 38... Ba6 {[%clk 0:00:05]} 39. Qxa5 {[%clk 0:00:11]}
39... Bxf1 {[%clk 0:00:05]} 40. Rxf1 {[%clk 0:00:11.7]} 40... Rfe8 {[%clk
0:00:04.6]} 41. b4 {[%clk 0:00:11.6]} 41... h5 {[%clk 0:00:04]} 42. Qb5 {[%clk
0:00:11.8]} 42... Bh6 {[%clk 0:00:04.3]} 43. Qe2 {[%clk 0:00:12.5]} 43... Kh7
{[%clk 0:00:04.8]} 44. Qf2 {[%clk 0:00:13.2]} 44... Bg7 {[%clk 0:00:05.5]} 45.
Qf3 {[%clk 0:00:13.3]} 45... Bxe5 {[%clk 0:00:05.7]} 46. Qxh5+ {[%clk
0:00:13.5]} 46... Kg7 {[%clk 0:00:05.4]} 47. Bxe5+ {[%clk 0:00:13.4]} 47... Qxe5
{[%clk 0:00:06.3]} 48. Qxe5+ {[%clk 0:00:13.4]} 48... Rxe5 {[%clk 0:00:07.2]}
49. a4 {[%clk 0:00:13.7]} 49... Re2 {[%clk 0:00:06.1]} 50. Bd3 {[%clk
0:00:12.5]} 50... Rd2 {[%clk 0:00:05.5]} 51. Bb5 {[%clk 0:00:12.4]} 51... Re3
{[%clk 0:00:05.6]} 52. Rc1 {[%clk 0:00:12.2]} 52... Rg3 {[%clk 0:00:04.5]} 53.
Rg1 {[%clk 0:00:11]} 53... Rxc3 {[%clk 0:00:04.8]} 54. a5 {[%clk 0:00:11.2]}
54... Rb3 {[%clk 0:00:04.6]} 55. a6 {[%clk 0:00:11.2]} 55... Rxb4 {[%clk
0:00:04.8]} 56. a7 {[%clk 0:00:11.5]} 56... Ra2 {[%clk 0:00:05.1]} 57. Bc6
{[%clk 0:00:11.9]} 57... Rba4 {[%clk 0:00:04.7]} 58. Bxd5 {[%clk 0:00:12.5]}
58... Rxa7 {[%clk 0:00:04.4]} 59. Bxa2 {[%clk 0:00:13.1]} 59... Rxa2 {[%clk
0:00:05.2]} 60. Kh2 {[%clk 0:00:13.5]} 60... f5 {[%clk 0:00:05.8]} 61. Kg3
{[%clk 0:00:13.2]} 61... Kh6 {[%clk 0:00:06.7]} 62. Kf4 {[%clk 0:00:13.5]} 62...
Ra4+ {[%clk 0:00:06.6]} 63. Ke5 {[%clk 0:00:13.5]} 63... Re4+ {[%clk 0:00:06.9]}
64. Kf6 {[%clk 0:00:13.5]} 64... f4 {[%clk 0:00:05.4]} 65. Rf1 {[%clk
0:00:11.7]} 65... g5 {[%clk 0:00:05.9]} 66. Rf2 {[%clk 0:00:12]} 66... Re3
{[%clk 0:00:06.1]} 67. Kf5 {[%clk 0:00:12.5]} 67... Rg3 {[%clk 0:00:05.8]} 68.
Re2 {[%clk 0:00:12.7]} 68... Kg7 {[%clk 0:00:02.7]} 69. h4 {[%clk 0:00:12]}
69... gxh4 {[%clk 0:00:01.5]} 70. Kxf4 {[%clk 0:00:12.7]} 70... Kg6 {[%clk
0:00:01.6]} 71. Re6+ {[%clk 0:00:11.2]} 71... Kh5 {[%clk 0:00:01.6]} 72. Re5+
{[%clk 0:00:10.9]} 72... Kg6 {[%clk 0:00:02.1]} 73. Re2 {[%clk 0:00:11.1]} 73...
Kf6 {[%clk 0:00:02]} 74. Rd2 {[%clk 0:00:10.3]} 74... Kg6 {[%clk 0:00:01.6]} 75.
Rd6+ {[%clk 0:00:10.3]} 75... Kh5 {[%clk 0:00:02.5]} 76. Rd5+ {[%clk 0:00:10.7]}
76... Kg6 {[%clk 0:00:03.2]} 77. Rd2 {[%clk 0:00:09.6]} 77... Kf6 {[%clk
0:00:03.8]} 78. Rd6+ {[%clk 0:00:07.9]} 78... Kf7 {[%clk 0:00:03.6]} 79. Rd2
{[%clk 0:00:08.3]} 79... Kf6 {[%clk 0:00:04]} 80. Rf2 {[%clk 0:00:08.5]} 80...
Kg6 {[%clk 0:00:04.2]} 81. Ke5 {[%clk 0:00:08.8]} 81... Kg5 {[%clk 0:00:04.3]}
82. Rf5+ {[%clk 0:00:08.7]} 82... Kg4 {[%clk 0:00:04.9]} 83. Rf4+ {[%clk
0:00:09.1]} 83... Kg5 {[%clk 0:00:05.8]} 84. Rf5+ {[%clk 0:00:09.6]} 84... Kg4
{[%clk 0:00:06.2]} 85. Rf4+ {[%clk 0:00:10.3]} 85... Kh5 {[%clk 0:00:06.7]} 86.
Rf5+ {[%clk 0:00:10.9]} 86... Rg5 {[%clk 0:00:07.2]} 87. Rxg5+ {[%clk
0:00:08.6]} 87... Kxg5 {[%clk 0:00:08.1]} 88. Ke4 {[%clk 0:00:09.3]} 88... Kg4
{[%clk 0:00:08.9]} 89. Ke3 {[%clk 0:00:09.6]} 89... Kg3 {[%clk 0:00:09.5]} 90.
Ke2 {[%clk 0:00:09.7]} 90... Kxg2 {[%clk 0:00:10.3]} 91. Ke1 {[%clk 0:00:09.9]}
91... h3 {[%clk 0:00:11.2]} 0-1

[Event "Early-Titled-Tuesday-Blitz-January-23-2024"]
[Site "Chess.com"]
[Date "2024.01.23"]
[Round "8"]
[White "masterofpuppets2"]
[Black "dirk_da_player"]
[Result "1-0"]
[WhiteElo "2514"]
[BlackElo "2374"]
[TimeControl "180+1"]
[EndTime "9:30:48 PST"]
[Termination "masterofpuppets2 won on time"]

1. d4 {[%clk 0:03:00.9]} 1... d5 {[%clk 0:03:00.3]} 2. c4 {[%clk 0:03:01]} 2...
e6 {[%clk 0:03:00.5]} 3. Nf3 {[%clk 0:03:01.2]} 3... c5 {[%clk 0:03:00]} 4. cxd5
{[%clk 0:03:00.7]} 4... exd5 {[%clk 0:03:00.9]} 5. g3 {[%clk 0:03:00.8]} 5...
Nc6 {[%clk 0:03:01.4]} 6. Bg2 {[%clk 0:03:01.1]} 6... Nf6 {[%clk 0:03:01.6]} 7.
O-O {[%clk 0:03:01.7]} 7... Be7 {[%clk 0:03:02.1]} 8. dxc5 {[%clk 0:03:02.3]}
8... Bxc5 {[%clk 0:03:02]} 9. a3 {[%clk 0:03:02.8]} 9... a5 {[%clk 0:03:02]} 10.
Qc2 {[%clk 0:02:59.9]} 10... Bb6 {[%clk 0:02:57.6]} 11. Nc3 {[%clk 0:02:53]}
11... O-O {[%clk 0:02:57]} 12. Bg5 {[%clk 0:02:50.6]} 12... Be6 {[%clk
0:02:53.6]} 13. Rad1 {[%clk 0:02:48.9]} 13... Rc8 {[%clk 0:02:48.8]} 14. Qa4
{[%clk 0:02:47.9]} 14... h6 {[%clk 0:02:40.7]} 15. Bxf6 {[%clk 0:02:42.3]} 15...
Qxf6 {[%clk 0:02:41.6]} 16. Nxd5 {[%clk 0:02:42]} 16... Bxd5 {[%clk 0:02:40.2]}
17. Rxd5 {[%clk 0:02:42.9]} 17... Rfe8 {[%clk 0:02:25.3]} 18. Qb5 {[%clk
0:02:38.8]} 18... Nd4 {[%clk 0:02:12.5]} 19. Nxd4 {[%clk 0:02:33.1]} 19... Bxd4
{[%clk 0:02:12.3]} 20. Rf5 {[%clk 0:02:22.1]} 20... Re5 {[%clk 0:01:18.8]} 21.
Rxe5 {[%clk 0:02:06.7]} 21... Bxe5 {[%clk 0:01:06.4]} 22. b3 {[%clk 0:01:42.4]}
22... b6 {[%clk 0:01:02]} 23. e3 {[%clk 0:01:40]} 23... g6 {[%clk 0:00:57.9]}
24. b4 {[%clk 0:01:26.1]} 24... axb4 {[%clk 0:00:54.5]} 25. axb4 {[%clk
0:01:27]} 25... Rc2 {[%clk 0:00:48.7]} 26. Be4 {[%clk 0:01:26.7]} 26... Rb2
{[%clk 0:00:48.7]} 27. Qc4 {[%clk 0:01:17.4]} 27... Bc3 {[%clk 0:00:39.3]} 28.
b5 {[%clk 0:01:11.7]} 28... Kg7 {[%clk 0:00:39]} 29. Kg2 {[%clk 0:01:07.8]}
29... Be1 {[%clk 0:00:33.5]} 30. Bf3 {[%clk 0:01:07.1]} 30... Bc3 {[%clk
0:00:32.6]} 31. h4 {[%clk 0:01:03.8]} 31... Bd2 {[%clk 0:00:32.1]} 32. Qd3
{[%clk 0:00:59]} 32... Bc3 {[%clk 0:00:28.5]} 33. h5 {[%clk 0:00:58.7]} 33... g5
{[%clk 0:00:26.9]} 34. g4 {[%clk 0:00:56.1]} 34... Bb4 {[%clk 0:00:27.3]} 35.
Bd1 {[%clk 0:00:51.7]} 35... Bc5 {[%clk 0:00:27.1]} 36. Bf3 {[%clk 0:00:37]}
36... Bd6 {[%clk 0:00:27.3]} 37. Qd5 {[%clk 0:00:34.3]} 37... Bc5 {[%clk
0:00:24.7]} 38. Qd3 {[%clk 0:00:31.2]} 38... Bd6 {[%clk 0:00:25.1]} 39. Qd5
{[%clk 0:00:26.5]} 39... Bc5 {[%clk 0:00:25.3]} 40. Re1 {[%clk 0:00:25.9]} 40...
Qc3 {[%clk 0:00:22.7]} 41. Re2 {[%clk 0:00:22.4]} 41... Rxe2 {[%clk 0:00:20.9]}
42. Bxe2 {[%clk 0:00:23.3]} 42... Qf6 {[%clk 0:00:20.2]} 43. Bf3 {[%clk
0:00:22.5]} 43... Bd6 {[%clk 0:00:20.3]} 44. Qd3 {[%clk 0:00:20.5]} 44... Qe5
{[%clk 0:00:20.7]} 45. Kf1 {[%clk 0:00:19.9]} 45... Qa1+ {[%clk 0:00:19.8]} 46.
Kg2 {[%clk 0:00:18.7]} 46... Qe5 {[%clk 0:00:19.7]} 47. Qc4 {[%clk 0:00:15.6]}
47... Qh2+ {[%clk 0:00:18.2]} 48. Kf1 {[%clk 0:00:16.1]} 48... Qe5 {[%clk
0:00:17.1]} 49. Qb3 {[%clk 0:00:14.2]} 49... Bc5 {[%clk 0:00:16.7]} 50. Be2
{[%clk 0:00:12.5]} 50... Qf6 {[%clk 0:00:16.6]} 51. Kg2 {[%clk 0:00:11.1]} 51...
Qe5 {[%clk 0:00:16.5]} 52. Qc4 {[%clk 0:00:10.6]} 52... Qf6 {[%clk 0:00:16]} 53.
Qd5 {[%clk 0:00:10.7]} 53... Bb4 {[%clk 0:00:15.4]} 54. Bd3 {[%clk 0:00:10.3]}
54... Be1 {[%clk 0:00:15.4]} 55. Bf5 {[%clk 0:00:10.6]} 55... Bb4 {[%clk
0:00:14.8]} 56. Qc4 {[%clk 0:00:10.3]} 56... Bc5 {[%clk 0:00:14.8]} 57. Qd5
{[%clk 0:00:09.7]} 57... Qc3 {[%clk 0:00:14.3]} 58. Be4 {[%clk 0:00:09]} 58...
Qf6 {[%clk 0:00:14.3]} 59. Bc2 {[%clk 0:00:08.4]} 59... Qc3 {[%clk 0:00:14.1]}
60. Qe4 {[%clk 0:00:08.6]} 60... Qf6 {[%clk 0:00:14.3]} 61. Qh7+ {[%clk
0:00:08.8]} 61... Kf8 {[%clk 0:00:14.3]} 62. Qd3 {[%clk 0:00:09.6]} 62... Kg7
{[%clk 0:00:14.3]} 63. Qe4 {[%clk 0:00:09.1]} 63... Kf8 {[%clk 0:00:12.9]} 64.
Bb3 {[%clk 0:00:09]} 64... Kg7 {[%clk 0:00:12.7]} 65. Bc4 {[%clk 0:00:08.9]}
65... Qd6 {[%clk 0:00:12.6]} 66. Bd3 {[%clk 0:00:08.2]} 66... Qf6 {[%clk
0:00:13.5]} 67. Qd5 {[%clk 0:00:08.3]} 67... Qe7 {[%clk 0:00:12.9]} 68. Qf5
{[%clk 0:00:08]} 68... Qf6 {[%clk 0:00:13]} 69. Qh7+ {[%clk 0:00:08.4]} 69...
Kf8 {[%clk 0:00:13.2]} 70. Be4 {[%clk 0:00:09]} 70... Ke7 {[%clk 0:00:12.6]} 71.
Bf3 {[%clk 0:00:09.3]} 71... Bd6 {[%clk 0:00:11.8]} 72. Qe4+ {[%clk 0:00:09.2]}
72... Qe5 {[%clk 0:00:11.7]} 73. Qb7+ {[%clk 0:00:09.7]} 73... Kf8 {[%clk
0:00:11.6]} 74. Qxb6 {[%clk 0:00:10.4]} 74... Qh2+ {[%clk 0:00:11.5]} 75. Kf1
{[%clk 0:00:11]} 75... Qh3+ {[%clk 0:00:12]} 76. Ke2 {[%clk 0:00:11]} 76... Qh2
{[%clk 0:00:10.4]} 77. Qd8+ {[%clk 0:00:11]} 77... Kg7 {[%clk 0:00:10.6]} 78. b6
{[%clk 0:00:11.6]} 78... Qe5 {[%clk 0:00:10.7]} 79. b7 {[%clk 0:00:11.5]} 79...
Qb2+ {[%clk 0:00:10.8]} 80. Kf1 {[%clk 0:00:12.1]} 80... Be5 {[%clk 0:00:11.4]}
81. Qd5 {[%clk 0:00:11.4]} 81... Qc3 {[%clk 0:00:11.2]} 82. Kg2 {[%clk
0:00:10.4]} 82... Qb2 {[%clk 0:00:11.4]} 83. Qe4 {[%clk 0:00:10.3]} 83... Qc3
{[%clk 0:00:11.3]} 84. Be2 {[%clk 0:00:09.4]} 84... Qb2 {[%clk 0:00:11.3]} 85.
Bd3 {[%clk 0:00:09.9]} 85... Kf8 {[%clk 0:00:10.9]} 86. Qd5 {[%clk 0:00:08.8]}
86... Kg7 {[%clk 0:00:10.6]} 87. Be4 {[%clk 0:00:08.1]} 87... Bf6 {[%clk
0:00:09.3]} 88. Qf5 {[%clk 0:00:07.8]} 88... Be5 {[%clk 0:00:09.3]} 89. Qh7+
{[%clk 0:00:08.1]} 89... Kf8 {[%clk 0:00:10.1]} 90. Qxh6+ {[%clk 0:00:08.7]}
90... Ke7 {[%clk 0:00:10.5]} 91. Qxg5+ {[%clk 0:00:09.1]} 91... f6 {[%clk
0:00:10.9]} 92. Qf5 {[%clk 0:00:08.8]} 92... Kd6 {[%clk 0:00:11.8]} 93. Qh7
{[%clk 0:00:08.7]} 93... Qb6 {[%clk 0:00:09.7]} 94. Qg7 {[%clk 0:00:07.4]} 94...
Qb2 {[%clk 0:00:08.7]} 95. Qf8+ {[%clk 0:00:07.3]} 95... Kd7 {[%clk 0:00:08.6]}
96. Qf7+ {[%clk 0:00:06.7]} 96... Kd8 {[%clk 0:00:07]} 97. h6 {[%clk 0:00:07]}
97... f5 {[%clk 0:00:06.5]} 98. Bxf5 {[%clk 0:00:05.7]} 98... Qxb7+ {[%clk
0:00:06.2]} 99. Qxb7 {[%clk 0:00:05.4]} 1-0

[Event "Early-Titled-Tuesday-Blitz-January-23-2024"]
[Site "Chess.com"]
[Date "2024.01.23"]
[Round "9"]
[White "FREDERICKtheMATE"]
[Black "Cheer_Down"]
[Result "1-0"]
[WhiteElo "2571"]
[BlackElo "2461"]
[TimeControl "180+1"]
[EndTime "9:39:21 PST"]
[Termination "FREDERICKtheMATE won by resignation"]

1. d4 {[%clk 0:03:00.9]} 1... Nf6 {[%clk 0:02:59.3]} 2. c4 {[%clk 0:03:00.4]}
2... e6 {[%clk 0:02:59.6]} 3. Nf3 {[%clk 0:03:00.1]} 3... d5 {[%clk 0:02:58.8]}
4. Nc3 {[%clk 0:02:59.4]} 4... Be7 {[%clk 0:02:56.5]} 5. Bf4 {[%clk 0:02:58]}
5... O-O {[%clk 0:02:50.1]} 6. e3 {[%clk 0:02:57.3]} 6... c5 {[%clk 0:02:49.9]}
7. dxc5 {[%clk 0:02:54.6]} 7... Bxc5 {[%clk 0:02:47.5]} 8. a3 {[%clk 0:02:54.3]}
8... Nc6 {[%clk 0:02:47.4]} 9. b4 {[%clk 0:02:52.3]} 9... Nxb4 {[%clk
0:02:46.2]} 10. axb4 {[%clk 0:02:51.7]} 10... Bxb4 {[%clk 0:02:46.6]} 11. Qb3
{[%clk 0:02:49.8]} 11... Ne4 {[%clk 0:02:46.3]} 12. Qxb4 {[%clk 0:02:49.8]} 1-0

[Event "Early-Titled-Tuesday-Blitz-January-23-2024"]
[Site "Chess.com"]
[Date "2024.01.23"]
[Round "9"]
[White "01Roman"]
[Black "Alexei_Gubajdullin"]
[Result "0-1"]
[WhiteElo "2465"]
[BlackElo "2581"]
[TimeControl "180+1"]
[EndTime "9:41:39 PST"]
[Termination "Alexei_Gubajdullin won by resignation"]

1. Nf3 {[%clk 0:02:59.1]} 1... Nf6 {[%clk 0:02:59.3]} 2. c4 {[%clk 0:02:36.8]}
2... c6 {[%clk 0:02:58.6]} 3. d4 {[%clk 0:02:26.3]} 3... d5 {[%clk 0:02:58.1]}
4. Qc2 {[%clk 0:02:26.5]} 4... Bg4 {[%clk 0:02:49.1]} 5. Ne5 {[%clk 0:02:26]}
5... Bh5 {[%clk 0:02:48.9]} 6. Qb3 {[%clk 0:02:24.3]} 6... Qb6 {[%clk
0:02:46.8]} 7. Qh3 {[%clk 0:02:13.2]} 7... e6 {[%clk 0:02:40.4]} 8. e3 {[%clk
0:01:48.8]} 8... Bb4+ {[%clk 0:02:36.3]} 9. Nd2 {[%clk 0:01:06.8]} 9... Bxd2+
{[%clk 0:02:23.3]} 10. Bxd2 {[%clk 0:01:01.2]} 10... Qxb2 {[%clk 0:02:22.4]} 11.
Rd1 {[%clk 0:01:00.4]} 11... Bxd1 {[%clk 0:02:19.9]} 0-1